bitfinex/quotes_BTCUSD_20240728
["timestamp","ask_amount","ask_price","bid_price","bid_amount"]
[1722131723214,0.05408241,68295.0,68294.0,0.265704]
[1722131723805,0.05408241,68295.0,68294.0,0.148564]
[1722131724001,0.05397055,68295.0,68294.0,0.148564]
[1722131724628,0.05397054,68295.0,68294.0,0.148564]
[1722131725331,0.05397054,68295.0,68294.0,0.499985]
[1722131725566,0.03098744,68295.0,68294.0,1.052647]
[1722131726191,0.016,68295.0,68294.0,1.052647]
[1722131726369,0.00084,68299.0,68298.0,0.585667]
[1722131726569,0.00084,68299.0,68298.0,0.725167]
[1722131727707,0.01591614,68299.0,68298.0,0.725167]
[1722131728071,0.01861825,68299.0,68298.0,0.725167]
[1722131730262,0.01861825,68299.0,68298.0,0.4909]
[1722131730263,0.02061825,68299.0,68298.0,0.4909]
[1722131731204,0.00584,68299.0,68298.0,0.4909]
[1722131731404,0.02085363,68299.0,68298.0,0.4909]
[1722131731656,0.02085338,68299.0,68298.0,0.4909]
[1722131732850,0.02085338,68299.0,68298.0,0.256633]
[1722131733102,0.02085338,68299.0,68295.0,0.0792]
[1722131733321,0.01501338,68298.0,68295.0,0.0792]
[1722131733540,0.01501338,68298.0,68296.0,0.11867004]
[1722131733739,0.01501338,68298.0,68296.0,0.117136]
[1722131734276,0.01513747,68297.0,68296.0,0.117136]
[1722131734499,0.00284,68299.0,68296.0,0.117136]
[1722131734500,0.01513747,68298.0,68296.0,0.117136]
[1722131734701,0.01513747,68297.0,68296.0,0.117136]
[1722131734857,0.01513747,68298.0,68296.0,0.117136]
[1722131735061,0.0381191,68297.0,68296.0,0.117136]
[1722131735471,0.01513747,68297.0,68296.0,0.117136]
[1722131735880,0.01513747,68297.0,68296.0,0.117137]
[1722131736710,0.001,68297.0,68295.0,0.0792]
[1722131736915,0.01613747,68297.0,68296.0,0.351411]
[1722131737119,0.01613747,68297.0,68296.0,0.730885]
[1722131737571,0.00084,68299.0,68296.0,0.730885]
[1722131737572,0.00084,68299.0,68298.0,0.117133]
[1722131737776,0.01606477,68299.0,68298.0,0.117133]
[1722131738099,0.01606477,68299.0,68298.0,0.3514]
[1722131738305,0.01606477,68299.0,68298.0,0.4306]
[1722131738714,0.03904597,68299.0,68298.0,0.4306]
[1722131738915,0.04104597,68299.0,68298.0,0.196333]
[1722131740140,0.04404597,68299.0,68298.0,0.196333]
[1722131741487,0.0288212,68299.0,68298.0,0.196333]
[1722131741657,0.04396799,68299.0,68298.0,0.196333]
[1722131743561,0.04394984,68299.0,68298.0,0.196333]
[1722131744165,0.0288212,68299.0,68298.0,0.196333]
[1722131744385,0.04396364,68299.0,68298.0,0.196333]
[1722131745131,0.02098244,68299.0,68298.0,0.196333]
[1722131745534,0.08238244,68299.0,68297.0,0.117134]
[1722131745710,0.01514244,68298.0,68297.0,0.117134]
[1722131745909,0.13227644,68298.0,68294.0,0.126204]
[1722131746116,0.01514244,68297.0,68294.0,0.126204]
[1722131747347,0.01614244,68297.0,68294.0,0.126204]
[1722131747496,0.01614244,68297.0,68294.0,0.127204]
[1722131747497,0.01524568,68296.0,68294.0,0.127204]
[1722131748102,0.03822766,68296.0,68294.0,0.127204]
[1722131748301,0.01524568,68295.0,68294.0,0.127204]
[1722131748728,0.01524568,68297.0,68294.0,0.127204]
[1722131748927,0.01924568,68296.0,68294.0,0.127204]
[1722131749137,0.117134,68298.0,68294.0,0.127204]
[1722131749138,0.01524568,68295.0,68294.0,0.127204]
[1722131749501,0.01824568,68295.0,68294.0,0.126204]
[1722131749702,0.01524568,68295.0,68294.0,0.126204]
[1722131749919,0.01524568,68297.0,68294.0,0.127204]
[1722131750098,0.004,68296.0,68294.0,0.127204]
[1722131750303,0.01524568,68295.0,68294.0,0.126204]
[1722131750594,0.01524568,68295.0,68294.0,0.009064]
[1722131750799,0.002,68295.0,68294.0,0.009064]
[1722131751025,0.01727224,68295.0,68294.0,0.009064]
[1722131751407,0.01718783,68295.0,68294.0,0.009064]
[1722131751653,0.04017002,68295.0,68294.0,0.009064]
[1722131752330,0.01718783,68295.0,68294.0,0.009064]
[1722131752769,0.02018783,68295.0,68294.0,0.009064]
[1722131753239,0.02027219,68295.0,68294.0,0.009064]
[1722131754041,0.005,68295.0,68294.0,0.009064]
[1722131754174,0.02026303,68295.0,68294.0,0.009064]
[1722131755822,0.02026303,68295.0,68294.0,0.126204]
[1722131755823,0.04324523,68295.0,68294.0,0.126204]
[1722131755964,0.04324523,68295.0,68294.0,0.009064]
[1722131756173,0.02026303,68295.0,68294.0,0.009064]
[1722131756420,0.02026303,68295.0,68294.0,0.126204]
[1722131756570,0.02026303,68295.0,68294.0,0.186904]
[1722131757398,0.02037957,68295.0,68294.0,0.186904]
[1722131759301,0.02037957,68295.0,68294.0,0.069764]
[1722131759529,0.04336138,68295.0,68294.0,0.069764]
[1722131759728,0.04336138,68295.0,68294.0,0.186904]
[1722131760621,0.02040113,68295.0,68294.0,0.186904]
[1722131760858,0.02040093,68295.0,68294.0,0.186904]
[1722131761202,0.0203633,68295.0,68294.0,0.186904]
[1722131762992,0.02038518,68295.0,68294.0,0.186904]
[1722131763219,0.005,68295.0,68294.0,0.186904]
[1722131763799,0.0203933,68295.0,68294.0,0.186904]
[1722131764019,0.04337504,68295.0,68294.0,0.186904]
[1722131764764,0.04337504,68295.0,68294.0,0.421185]
[1722131765166,0.0203933,68295.0,68294.0,0.421185]
[1722131766344,0.02054137,68295.0,68294.0,0.421185]
[1722131766754,0.02054137,68295.0,68294.0,0.186904]
[1722131766956,0.02054137,68295.0,68294.0,0.069764]
[1722131767167,0.02054137,68295.0,68294.0,0.009064]
[1722131767946,0.02054137,68295.0,68294.0,0.126204]
[1722131768290,0.02054137,68295.0,68294.0,0.009064]
[1722131768492,0.043523,68295.0,68294.0,0.009064]
[1722131768695,0.02054137,68295.0,68294.0,0.009064]
[1722131769548,0.02016364,68295.0,68294.0,0.009064]
[1722131769996,0.02016369,68295.0,68294.0,0.009064]
[1722131770752,0.005,68295.0,68294.0,0.009064]
[1722131772356,0.005,68295.0,68294.0,0.126204]
[1722131774758,0.005,68295.0,68294.0,0.12715152]
[1722131774961,0.005,68295.0,68294.0,0.126204]
[1722131775345,0.005,68295.0,68294.0,0.12702082]
[1722131775478,0.005,68295.0,68294.0,0.126204]
[1722131775678,0.005,68295.0,68294.0,0.12708679]
[1722131775976,0.005,68295.0,68294.0,0.126204]
[1722131776205,0.02798176,68295.0,68294.0,0.12707454]
[1722131776987,0.02798176,68295.0,68294.0,0.10409257]
[1722131776988,0.005,68295.0,68294.0,0.10409257]
[1722131778045,0.005,68295.0,68294.0,0.33837357]
[1722131778258,0.005,68295.0,68294.0,0.72041232]
[1722131778908,0.005,68295.0,68294.0,0.71748403]
[1722131781447,0.003,68295.0,68294.0,0.71748403]
[1722131781615,0.00084,68299.0,68298.0,0.3514]
[1722131782580,0.00084,68299.0,68298.0,0.899634]
[1722131782786,0.00084,68299.0,68298.0,0.965634]
[1722131783177,0.00384,68299.0,68298.0,0.965634]
[1722131783587,0.00084,68299.0,68298.0,0.965634]
[1722131783787,0.00084,68299.0,68298.0,1.199901]
[1722131784628,0.00284,68299.0,68298.0,1.199901]
[1722131785240,0.0238174,68299.0,68298.0,1.199901]
[1722131785440,0.0248174,68299.0,68298.0,1.199901]
[1722131785641,0.0258174,68299.0,68298.0,1.202901]
[1722131785794,0.0258174,68299.0,68298.0,1.21148685]
[1722131788325,0.0258174,68299.0,68298.0,0.97721985]
[1722131789402,0.0258174,68299.0,68298.0,0.97421985]
[1722131789403,0.0248174,68299.0,68298.0,0.97421985]
[1722131789829,0.00184,68299.0,68298.0,0.97721985]
[1722131790243,0.00284,68299.0,68298.0,0.97721985]
[1722131791022,0.00284,68299.0,68298.0,0.97421985]
[1722131791023,0.00184,68299.0,68298.0,0.97421985]
[1722131791448,0.00284,68299.0,68298.0,0.97721985]
[1722131792261,0.00184,68299.0,68298.0,0.97421985]
[1722131792464,0.00084,68299.0,68298.0,1.05831985]
[1722131792672,0.02581838,68299.0,68298.0,1.06131985]
[1722131793489,0.02481838,68299.0,68298.0,0.97721985]
[1722131793696,0.02581838,68299.0,68298.0,0.97721985]
[1722131794109,0.02481838,68299.0,68298.0,0.97421985]
[1722131794313,0.00184,68299.0,68298.0,0.97421985]
[1722131794518,0.00284,68299.0,68298.0,0.97721985]
[1722131797549,0.02581824,68299.0,68298.0,0.97721985]
[1722131798718,0.00284,68299.0,68298.0,0.97721985]
[1722131799520,0.00284,68299.0,68298.0,1.06131985]
[1722131803474,0.02581815,68299.0,68298.0,1.06131985]
[1722131804550,0.02581815,68299.0,68298.0,1.29558685]
[1722131805900,0.00284,68299.0,68298.0,1.29558685]
[1722131807486,0.00284,68299.0,68298.0,1.83451342]
[1722131807732,0.00284,68299.0,68298.0,1.95751342]
[1722131808631,0.00084,68299.0,68298.0,1.95451342]
[1722131808866,0.00184,68299.0,68298.0,1.95751342]
[1722131809129,0.02581656,68299.0,68298.0,1.95951342]
[1722131809353,0.02397656,68299.0,68298.0,1.95951342]
[1722131809565,0.02397656,68299.0,68298.0,2.08118059]
[1722131809566,0.01167595,68299.0,68298.0,2.08118059]
[1722131809786,0.1424,68325.0,68300.0,0.002]
[1722131810008,0.1424,68325.0,68324.0,0.351267]
[1722131810238,0.15923972,68325.0,68324.0,0.351267]
[1722131810691,0.1424,68325.0,68324.0,0.351267]
[1722131810915,0.15923995,68325.0,68324.0,0.351267]
[1722131811804,0.15923995,68325.0,68323.0,0.234181]
[1722131812086,0.01683995,68324.0,68323.0,0.11709]
[1722131812755,0.01683995,68324.0,68323.0,0.351271]
[1722131812969,0.1514,68325.0,68324.0,0.117089]
[1722131813180,0.16838123,68325.0,68324.0,0.117089]
[1722131813872,0.16838123,68325.0,68324.0,0.108089]
[1722131814231,0.1514,68325.0,68324.0,0.108089]
[1722131814459,0.16837924,68325.0,68324.0,0.108089]
[1722131815385,0.15937924,68325.0,68324.0,0.108089]
[1722131815611,0.17137924,68325.0,68324.0,0.110089]
[1722131816516,0.17137924,68325.0,68324.0,0.002]
[1722131817468,0.17125641,68325.0,68324.0,0.002]
[1722131820751,0.1544,68325.0,68324.0,0.002]
[1722131820988,0.17108634,68325.0,68324.0,0.002]
[1722131821488,0.28817334,68325.0,68324.0,0.002]
[1722131823169,0.28820863,68325.0,68324.0,0.002]
[1722131823641,0.60648263,68325.0,68324.0,0.002]
[1722131823868,0.84065663,68325.0,68324.0,0.002]
[1722131825272,0.86363153,68325.0,68324.0,0.002]
[1722131825496,0.84065663,68325.0,68324.0,0.002]
[1722131826463,0.84012692,68325.0,68324.0,0.002]
[1722131826686,0.86310186,68325.0,68324.0,0.002]
[1722131827136,1.07430092,68325.0,68324.0,0.002]
[1722131827368,1.12506862,68325.0,68324.0,0.002]
[1722131829667,1.12543002,68325.0,68324.0,0.002]
[1722131830277,1.14840528,68325.0,68324.0,0.002]
[1722131830469,1.09746231,68325.0,68324.0,0.002]
[1722131830690,1.14828902,68325.0,68324.0,0.002]
[1722131831027,1.12531376,68325.0,68324.0,0.002]
[1722131832741,1.058109,68325.0,68324.0,0.002]
[1722131832941,1.12538314,68325.0,68324.0,0.002]
[1722131833356,1.058109,68325.0,68324.0,0.002]
[1722131833559,1.12459779,68325.0,68324.0,0.002]
[1722131834362,1.14757246,68325.0,68324.0,0.002]
[1722131834563,1.09685808,68325.0,68324.0,0.002]
[1722131834769,1.14722615,68325.0,68324.0,0.002]
[1722131835646,1.12425148,68325.0,68324.0,0.002]
[1722131836255,1.12425148,68325.0,68324.0,0.002924]
[1722131836472,1.12514812,68325.0,68324.0,0.002924]
[1722131838859,1.14812279,68325.0,68324.0,0.002924]
[1722131839484,1.08192367,68325.0,68324.0,0.002924]
[1722131839686,1.13218565,68325.0,68324.0,0.002924]
[1722131839891,1.14784867,68325.0,68324.0,0.002924]
[1722131840054,1.124874,68325.0,68324.0,0.002924]
[1722131840705,1.71973895,68325.0,68324.0,0.002924]
[1722131840914,1.81973895,68325.0,68324.0,0.002924]
[1722131841064,1.84273895,68325.0,68324.0,0.002924]
[1722131841668,1.83873895,68325.0,68324.0,0.001924]
[1722131841943,1.712222,68325.0,68324.0,0.001924]
[1722131842055,1.716222,68325.0,68324.0,0.002924]
[1722131842469,1.708222,68325.0,68324.0,0.001924]
[1722131842678,1.656297,68325.0,68324.0,0.002924]
[1722131842905,1.72305644,68325.0,68324.0,0.002924]
[1722131843122,1.48888244,68325.0,68324.0,0.002924]
[1722131843340,1.51186095,68325.0,68324.0,0.002924]
[1722131843546,1.48888244,68325.0,68324.0,0.002924]
[1722131845370,1.48933253,68325.0,68324.0,0.002924]
[1722131846016,1.422123,68325.0,68324.0,0.002924]
[1722131846223,1.48938208,68325.0,68324.0,0.002924]
[1722131847042,1.51235987,68325.0,68324.0,0.002924]
[1722131847400,1.66047656,68325.0,68324.0,0.002924]
[1722131848021,1.63749877,68325.0,68324.0,0.002924]
[1722131849273,1.422123,68325.0,68324.0,0.002924]
[1722131849469,1.63731058,68325.0,68324.0,0.002924]
[1722131849650,1.48921998,68325.0,68324.0,0.002924]
[1722131851051,1.51219773,68325.0,68324.0,0.002924]
[1722131851425,1.48921998,68325.0,68324.0,0.002924]
[1722131852045,1.63731058,68325.0,68324.0,0.002924]
[1722131852469,1.48921998,68325.0,68324.0,0.002924]
[1722131852733,1.48980326,68325.0,68324.0,0.002924]
[1722131854606,1.51278101,68325.0,68324.0,0.002924]
[1722131854978,1.5281005,68325.0,68324.0,0.002924]
[1722131855182,1.52801473,68325.0,68324.0,0.002924]
[1722131855592,1.52801473,68325.0,68307.0,0.0793]
[1722131855796,0.669682,68308.0,68307.0,0.05924625]
[1722131855988,0.68618728,68308.0,68307.0,0.05924625]
[1722131856984,0.68618728,68308.0,68307.0,0.06024625]
[1722131857810,0.69118728,68308.0,68307.0,0.06024625]
[1722131858834,0.69118728,68308.0,68307.0,0.05924625]
[1722131858997,0.69618728,68308.0,68307.0,0.06024625]
[1722131859195,0.69627602,68308.0,68307.0,0.06024625]
[1722131861938,0.69629828,68308.0,68307.0,0.06024625]
[1722131863123,0.69632489,68308.0,68307.0,0.06024625]
[1722131865208,0.71930361,68308.0,68307.0,0.06024625]
[1722131865419,0.69632489,68308.0,68307.0,0.06024625]
[1722131865856,0.679682,68308.0,68307.0,0.06024625]
[1722131866071,0.74835711,68308.0,68307.0,0.06024625]
[1722131868548,0.74835711,68308.0,68307.0,0.06117025]
[1722131869226,0.679682,68308.0,68307.0,0.06117025]
[1722131869447,0.74840829,68308.0,68307.0,0.06117025]
[1722131870760,1.36297429,68308.0,68307.0,0.001924]
[1722131871163,1.46297429,68308.0,68307.0,0.001924]
[1722131871566,1.45797429,68308.0,68307.0,0.001924]
[1722131871796,1.46697429,68308.0,68307.0,0.001924]
[1722131872019,1.61723386,68308.0,68307.0,0.001924]
[1722131872239,1.48097429,68308.0,68307.0,0.002924]
[1722131872463,1.48097429,68308.0,68307.0,0.001924]
[1722131872464,1.49025921,68308.0,68307.0,0.001924]
[1722131872925,1.49025921,68308.0,68297.0,0.0632]
[1722131872926,0.234257,68301.0,68297.0,0.0632]
[1722131873141,0.4355,68298.0,68297.0,0.0632]
[1722131873355,0.73877967,68298.0,68297.0,0.0632]
[1722131874967,0.76377967,68298.0,68297.0,0.0632]
[1722131875622,0.694767,68298.0,68297.0,0.0632]
[1722131875782,0.76379635,68298.0,68297.0,0.0632]
[1722131876136,0.76379635,68298.0,68297.0,0.1412]
[1722131876277,0.78677892,68298.0,68297.0,0.1412]
[1722131877294,0.76379635,68298.0,68297.0,0.1412]
[1722131879017,0.76370395,68298.0,68297.0,0.1412]
[1722131880374,0.71196567,68298.0,68297.0,0.1412]
[1722131880807,0.7349482,68298.0,68297.0,0.1412]
[1722131881029,0.78671052,68298.0,68297.0,0.1412]
[1722131881255,0.71774953,68298.0,68297.0,0.1412]
[1722131881472,0.78673628,68298.0,68297.0,0.078]
[1722131881890,0.76433486,68298.0,68297.0,0.078]
[1722131882567,0.585692,68295.0,68294.0,0.078924]
[1722131882778,0.68731349,68295.0,68294.0,0.078924]
[1722131883636,0.669792,68295.0,68294.0,0.078924]
[1722131883892,0.70626441,68295.0,68294.0,0.078924]
[1722131884538,0.688792,68295.0,68294.0,0.078924]
[1722131884759,0.70625347,68295.0,68294.0,0.078924]
[1722131885219,0.7292363,68295.0,68294.0,0.078924]
[1722131885445,0.70625347,68295.0,68294.0,0.000924]
[1722131888025,0.70628898,68295.0,68294.0,0.000924]
[1722131891286,0.70644674,68295.0,68294.0,0.000924]
[1722131891802,0.70644696,68295.0,68294.0,0.000924]
[1722131891970,0.72942974,68295.0,68294.0,0.000924]
[1722131892378,0.70644696,68295.0,68294.0,0.000924]
[1722131892579,0.7586411,68295.0,68294.0,0.000924]
[1722131892784,0.70644696,68295.0,68294.0,0.000924]
[1722131893443,0.75863738,68295.0,68294.0,0.000924]
[1722131894513,0.688792,68295.0,68294.0,0.000924]
[1722131894721,0.75869862,68295.0,68294.0,0.000924]
[1722131895345,0.7816814,68295.0,68294.0,0.000924]
[1722131895914,0.75869862,68295.0,68294.0,0.000924]
[1722131897588,0.85886772,68295.0,68294.0,0.000924]
[1722131898087,0.85896606,68295.0,68294.0,0.000924]
[1722131898314,0.75879696,68295.0,68294.0,0.000924]
[1722131899027,0.78177974,68295.0,68294.0,0.000924]
[1722131900342,0.75879696,68295.0,68294.0,0.000924]
[1722131901262,0.688792,68295.0,68294.0,0.000924]
[1722131901471,0.75880026,68295.0,68294.0,0.000924]
[1722131903860,0.75883782,68295.0,68294.0,0.000924]
[1722131904551,0.688792,68295.0,68294.0,0.000924]
[1722131904761,0.78174936,68295.0,68294.0,0.000924]
[1722131907932,0.7814391,68295.0,68294.0,0.000924]
[1722131909089,1.05778641,68295.0,68294.0,0.000924]
[1722131909298,1.3973931,68295.0,68294.0,0.000924]
[1722131909734,1.37441032,68295.0,68294.0,0.000924]
[1722131909935,1.47441032,68295.0,68294.0,0.000924]
[1722131910139,1.72168732,68295.0,68294.0,0.000924]
[1722131910343,1.71268732,68295.0,68294.0,0.000924]
[1722131910575,1.87494689,68295.0,68294.0,0.000924]
[1722131910779,1.88594689,68295.0,68294.0,0.000924]
[1722131911014,1.81628257,68295.0,68294.0,0.000924]
[1722131911233,1.89305116,68295.0,68294.0,0.000924]
[1722131911395,1.89340648,68295.0,68294.0,0.000924]
[1722131911590,1.80528257,68295.0,68294.0,0.000924]
[1722131911893,1.88140648,68295.0,68294.0,0.000924]
[1722131912089,1.89540648,68295.0,68294.0,0.000924]
[1722131912465,1.88140648,68295.0,68294.0,0.000924]
[1722131912713,1.90940648,68295.0,68294.0,0.000924]
[1722131912917,1.93239313,68295.0,68294.0,0.000924]
[1722131913660,1.93227736,68295.0,68294.0,0.000924]
[1722131914258,1.90929071,68295.0,68294.0,0.000924]
[1722131916016,1.198041,68289.0,68288.0,0.000924]
[1722131916177,1.47014914,68289.0,68288.0,0.000924]
[1722131917314,1.47914914,68289.0,68288.0,0.000924]
[1722131917539,1.4750151,68289.0,68288.0,0.000924]
[1722131917758,1.50180809,68289.0,68288.0,0.000924]
[1722131917967,1.47882019,68289.0,68288.0,0.000924]
[1722131918401,1.48882019,68289.0,68288.0,0.000924]
[1722131920029,1.63907976,68289.0,68288.0,0.000924]
[1722131920724,1.55140057,68289.0,68288.0,0.000924]
[1722131920986,1.66641909,68289.0,68288.0,0.000924]
[1722131921122,1.68940682,68289.0,68288.0,0.000924]
[1722131921327,1.69764648,68289.0,68288.0,0.000924]
[1722131922235,1.67465875,68289.0,68288.0,0.000924]
[1722131922440,1.52439918,68289.0,68288.0,0.000924]
[1722131924081,1.43666204,68289.0,68288.0,0.000924]
[1722131924276,1.52425586,68289.0,68288.0,0.000924]
[1722131925258,1.54724363,68289.0,68288.0,0.000924]
[1722131926419,1.75855386,68289.0,68288.0,0.000924]
[1722131926623,0.201261,68282.0,68281.0,0.002]
[1722131926826,1.00119882,68282.0,68281.0,0.002]
[1722131927050,1.46984282,68282.0,68281.0,0.002]
[1722131927228,1.49286794,68282.0,68281.0,0.002]
[1722131927433,1.64312751,68282.0,68281.0,0.002]
[1722131928431,1.65712751,68282.0,68281.0,0.002]
[1722131928627,1.64312751,68282.0,68281.0,0.002]
[1722131929054,1.65712751,68282.0,68281.0,0.002]
[1722131929474,1.67112751,68282.0,68281.0,0.002]
[1722131930331,1.6724737,68282.0,68281.0,0.002]
[1722131930551,1.67245383,68282.0,68281.0,0.002]
[1722131931946,1.90677583,68282.0,68281.0,0.002]
[1722131932965,1.90719602,68282.0,68281.0,0.002924]
[1722131933590,1.90719602,68282.0,68279.0,1e-08]
[1722131933591,1.288809,68280.0,68279.0,1e-08]
[1722131933799,1.288809,68280.0,68270.0,0.009064]
[1722131933800,0.49194,68271.0,68270.0,0.009064]
[1722131934007,1.46859512,68271.0,68270.0,0.009064]
[1722131934453,1.49159512,68271.0,68270.0,0.009064]
[1722131935120,1.50559512,68271.0,68270.0,0.009064]
[1722131935739,1.35619512,68271.0,68270.0,0.009064]
[1722131936182,1.37019512,68271.0,68270.0,0.009064]
[1722131937228,1.37038479,68271.0,68270.0,0.009064]
[1722131937397,1.39337814,68271.0,68270.0,0.009064]
[1722131938554,1.37038479,68271.0,68270.0,0.009064]
[1722131940321,1.37076774,68271.0,68270.0,0.009064]
[1722131940524,1.37955335,68271.0,68270.0,0.009064]
[1722131940922,1.37966364,68271.0,68270.0,0.009064]
[1722131941366,1.40265695,68271.0,68270.0,0.009064]
[1722131941723,1.55291652,68271.0,68270.0,0.009064]
[1722131942315,1.54305695,68271.0,68270.0,0.009064]
[1722131942829,1.77747648,68271.0,68270.0,0.009064]
[1722131943963,1.77747648,68271.0,68257.0,0.0794]
[1722131943964,0.234363,68270.0,68257.0,0.0794]
[1722131944178,0.435686,68262.0,68257.0,0.0794]
[1722131944372,0.52589687,68262.0,68257.0,0.0794]
[1722131945123,1.04726856,68262.0,68257.0,0.0794]
[1722131945806,1.05826856,68262.0,68257.0,0.0794]
[1722131946008,0.97805769,68262.0,68257.0,0.0794]
[1722131946232,1.09180636,68262.0,68257.0,0.0794]
[1722131946599,1.32619736,68262.0,68257.0,0.0794]
[1722131947502,1.30320213,68262.0,68257.0,0.0794]
[1722131948138,1.30320213,68262.0,68241.0,0.011064]
[1722131948139,1.32620213,68262.0,68254.0,0.0826]
[1722131949367,1.23544869,68262.0,68254.0,0.0826]
[1722131949612,1.32625266,68262.0,68254.0,0.0826]
[1722131949836,1.40835266,68262.0,68254.0,0.0826]
[1722131950058,1.42066297,68262.0,68254.0,0.0826]
[1722131952695,1.329859,68262.0,68254.0,0.0826]
[1722131952901,1.4294664,68262.0,68254.0,0.0826]
[1722131953541,1.42946585,68262.0,68254.0,0.0826]
[1722131953764,1.57394438,68262.0,68254.0,0.0826]
[1722131954221,1.17536585,68262.0,68241.0,0.011064]
[1722131954461,1.25946585,68262.0,68261.0,0.1438]
[1722131954906,1.28246147,68262.0,68261.0,0.1438]
[1722131955116,1.28245807,68262.0,68261.0,0.1438]
[1722131955325,1.254008,68262.0,68261.0,0.1438]
[1722131955537,1.28245859,68262.0,68261.0,0.1438]
[1722131956381,1.28250028,68262.0,68261.0,0.1438]
[1722131960920,1.41228226,68262.0,68261.0,0.1438]
[1722131961807,1.63989128,68262.0,68261.0,0.002]
[1722131963151,1.64090178,68262.0,68261.0,0.002]
[1722131963372,1.63090178,68262.0,68261.0,0.002]
[1722131963590,1.55292148,68262.0,68261.0,0.002]
[1722131963829,1.78416187,68262.0,68261.0,0.002]
[1722131964036,1.77016187,68262.0,68261.0,0.002]
[1722131964248,1.78416187,68262.0,68261.0,0.002924]
[1722131964457,1.79816187,68262.0,68261.0,0.002924]
[1722131965128,1.3064113,68262.0,68261.0,0.002924]
[1722131965337,1.4044573,68262.0,68261.0,0.002924]
[1722131965543,1.4044573,68262.0,68261.0,0.079624]
[1722131965746,1.4044573,68262.0,68261.0,0.074624]
[1722131966436,1.4040823,68262.0,68261.0,0.074624]
[1722131967349,0.351612,68257.0,68256.0,0.0651]
[1722131967535,1.01197982,68257.0,68256.0,0.0651]
[1722131968664,1.01197982,68257.0,68256.0,0.1418]
[1722131969441,1.02597982,68257.0,68256.0,0.1418]
[1722131969656,1.02602864,68257.0,68256.0,0.1418]
[1722131969997,1.04002864,68257.0,68256.0,0.1418]
[1722131970138,1.054849,68256.0,68252.0,0.085764]
[1722131970343,1.33054964,68256.0,68252.0,0.085764]
[1722131971258,1.34454964,68256.0,68252.0,0.085764]
[1722131971659,1.35854964,68256.0,68252.0,0.085764]
[1722131971883,1.38154727,68256.0,68252.0,0.085764]
[1722131972971,1.38231541,68256.0,68252.0,0.085764]
[1722131973327,1.28994663,68256.0,68252.0,0.085764]
[1722131973541,1.38238999,68256.0,68252.0,0.085764]
[1722131974519,1.38238999,68256.0,68255.0,0.004064]
[1722131975155,1.28994663,68256.0,68255.0,0.004064]
[1722131975358,1.38241621,68256.0,68255.0,0.004064]
[1722131976132,1.36894663,68256.0,68255.0,0.004064]
[1722131976515,1.46143182,68256.0,68255.0,0.004064]
[1722131976735,1.43843419,68256.0,68255.0,0.004064]
[1722131977915,1.35943419,68256.0,68255.0,0.004064]
[1722131979005,1.45510766,68256.0,68255.0,0.004064]
[1722131979205,0.820473,68253.0,68252.0,0.008128]
[1722131979410,0.99705819,68253.0,68252.0,0.008128]
[1722131979785,0.99708392,68253.0,68252.0,0.008128]
[1722131980024,1.02008239,68253.0,68252.0,0.008128]
[1722131980470,1.01008392,68253.0,68252.0,0.008128]
[1722131980688,1.02408392,68253.0,68252.0,0.008128]
[1722131981401,1.02408392,68253.0,68252.0,0.003128]
[1722131982970,1.02410853,68253.0,68252.0,0.003128]
[1722131983208,1.02410853,68253.0,68252.0,0.145628]
[1722131983444,1.04710709,68253.0,68252.0,0.140628]
[1722131985060,1.02441469,68253.0,68252.0,0.140628]
[1722131985778,1.02441469,68253.0,68252.0,0.135628]
[1722131986186,1.02439932,68253.0,68252.0,0.135628]
[1722131989624,1.02450504,68253.0,68252.0,0.135628]
[1722131989936,1.0475032,68253.0,68252.0,0.135628]
[1722131990349,1.054926,68251.0,68247.0,0.0824]
[1722131990578,1.14785773,68251.0,68247.0,0.0824]
[1722131992352,1.15985773,68251.0,68247.0,0.0824]
[1722131992764,1.09629234,68251.0,68247.0,0.0824]
[1722131992951,1.15963766,68251.0,68247.0,0.0824]
[1722131993149,1.15697452,68251.0,68247.0,0.0824]
[1722131993365,1.18649628,68251.0,68247.0,0.0824]
[1722131994910,1.18645516,68251.0,68247.0,0.0824]
[1722131995744,1.17089997,68251.0,68247.0,0.0824]
[1722131996144,1.17084551,68251.0,68247.0,0.0824]
[1722131996801,1.19384419,68251.0,68247.0,0.0824]
[1722131998011,1.17084551,68251.0,68247.0,0.0824]
[1722131999326,1.077926,68251.0,68247.0,0.0824]
[1722131999550,1.17064267,68251.0,68247.0,0.0824]
[1722132001066,1.19364135,68251.0,68247.0,0.0824]
[1722132001512,1.19364135,68251.0,68250.0,0.154264]
[1722132001513,0.57445735,68251.0,68250.0,0.154264]
[1722132001749,0.48174068,68251.0,68250.0,0.154264]
[1722132001972,0.78587935,68251.0,68250.0,0.154264]
[1722132002195,0.75651651,68251.0,68250.0,0.154264]
[1722132002422,0.11522059,68251.0,68250.0,0.154264]
[1722132002660,0.46686259,68251.0,68250.0,0.154264]
[1722132004025,0.4677136,68251.0,68250.0,0.154264]
[1722132005031,0.4671758,68251.0,68250.0,0.154264]
[1722132005464,0.4561758,68251.0,68250.0,0.154264]
[1722132005869,0.4661758,68251.0,68250.0,0.154264]
[1722132006137,0.4541758,68251.0,68250.0,0.154264]
[1722132006365,0.4651758,68251.0,68250.0,0.154264]
[1722132007634,0.6996038,68251.0,68250.0,0.154264]
[1722132007850,0.4651758,68251.0,68250.0,0.154264]
[1722132008276,0.46550234,68251.0,68250.0,0.154264]
[1722132008852,0.48626516,68251.0,68250.0,0.154264]
[1722132009178,0.69769536,68251.0,68250.0,0.154264]
[1722132009410,0.46326736,68251.0,68250.0,0.154264]
[1722132009942,0.69769536,68251.0,68250.0,0.154264]
[1722132010123,0.46326736,68251.0,68250.0,0.154264]
[1722132011334,0.37040702,68251.0,68250.0,0.154264]
[1722132011579,0.4644232,68251.0,68250.0,0.154264]
[1722132012049,0.60483502,68251.0,68250.0,0.154264]
[1722132012216,0.69885174,68251.0,68250.0,0.154264]
[1722132012621,0.72184954,68251.0,68250.0,0.154264]
[1722132014009,0.69885174,68251.0,68250.0,0.154264]
[1722132014901,0.69879956,68251.0,68250.0,0.154264]